lending/lending_fUSD_20240711
["ID","MTS","AMOUNT","RATE_DAILY","PERIOD"]
[331737527,1720725043481,-334.80941796,0.000138,2]
[331737528,1720725043560,-500.0,0.00013799,2]
[331737529,1720725043569,-634.31999994,0.000138,2]
[331737530,1720725043580,-912.45,0.000138,2]
[331737531,1720725043591,-2412.0,0.000138,2]
[331737532,1720725043602,-33353.29963906,0.000138,2]
[331737533,1720725043613,-2198.591,0.000138,2]
[331737547,1720725046353,-286.20532406,0.00013799,2]
[331737548,1720725046362,-149.45874637,0.00013799,2]
[331737549,1720725046373,-1091.45455829,0.00013799,2]
[331737550,1720725046385,-289.78365456,0.00013799,2]
[331737551,1720725046396,-430.6096317,0.00013799,2]
[331737552,1720725046407,-1494.82037085,0.00013799,2]
[331737553,1720725046455,-453.46218221,0.00013799,2]
[331737554,1720725046467,-2020.50079158,0.00013799,2]
[331737555,1720725046476,-743.0,0.000138,2]
[331737556,1720725046486,-68545.67966085,0.000138,2]
[331737557,1720725046497,-1346.35809449,0.000138,2]
[331737558,1720725046508,-8027.63642451,0.000138,2]
[331737559,1720725046518,-344.849717,0.000138,2]
[331737560,1720725046529,-718.1047832,0.000138,2]
[331737561,1720725046540,-19505.30279662,0.000138,2]
[331737562,1720725046552,-623.04947874,0.000138,2]
[331737563,1720725046564,-1919.57705919,0.000138,2]
[331737564,1720725046576,-307.44854805,0.000138,2]
[331737565,1720725046587,-1542.7683886,0.000138,2]
[331737566,1720725046602,-527.56980588,0.000138,2]
[331737567,1720725046612,-363.366,0.000138,2]
[331737568,1720725046623,-2007.07929185,0.000138,2]
[331737569,1720725046634,-371.88291753,0.000138,2]
[331737570,1720725046646,-1324.8,0.000138,2]
[331737571,1720725046656,-971.80605384,0.000138,2]
[331737572,1720725046669,-596.13999999,0.000138,2]
[331737573,1720725046686,-67401.41348932,0.000138,2]
[331737574,1720725046702,-359.38734167,0.000138,2]
[331737575,1720725046715,-310.531547,0.000138,2]
[331737576,1720725046729,-304.39367818,0.000138,2]
[331737577,1720725046744,-382.84633833,0.000138,2]
[331737578,1720725046759,-966.48161158,0.000138,2]
[331737579,1720725046773,-3877.46310139,0.000138,2]
[331737580,1720725046792,-650.09,0.000138,2]
[331737589,1720725046880,-460.65712765,0.000138,2]
[331737593,1720725046907,-53190.04953092,0.000138,2]
[331737595,1720725046923,-1793.87083348,0.000138,2]
[331737598,1720725046940,-611.967,0.000138,2]
[331737689,1720725067827,500.0,0.0001126,2]
[331737690,1720725099781,500.0,0.0001126,2]
[331737691,1720725164158,3442.13650919,0.0001126,2]
[331737693,1720725413432,491.92,0.00010685,2]
[331737694,1720725432273,-310.56,0.00012214,2]
[331737695,1720725432296,-269.04847616,0.00012273,2]
[331737696,1720725432319,-206.12734629,0.00012273,2]
[331737697,1720725432344,-553.0,0.00012301,2]
[331737698,1720725432368,-261.78866784,0.00012302,2]
[331737699,1720725432393,-939.29185582,0.00012314,2]
[331737700,1720725432512,-475.18187236,0.00012314,2]
[331737701,1720725432538,-13377.37,0.00012594,2]
[331737702,1720725432564,-1000.0,0.00012677,2]
[331737703,1720725432588,-250.0,0.0001273,2]
[331737704,1720725432612,-8340.7626,0.00012804,2]
[331737705,1720725432636,-1170.77,0.00012832,2]
[331737706,1720725432662,-603.71605934,0.00012904,2]
[331737707,1720725432689,-500.0,0.00012904,2]
[331737708,1720725432716,-491.92,0.00012949,2]
[331737709,1720725432743,-16250.46312219,0.00013,2]
[331737710,1720725483185,500.0,0.0001126,2]
[331737712,1720725558066,299.91818426,0.0001126,2]
[331737713,1720725613056,322.44306516,0.00011199,2]
[331737714,1720725663948,299.79633498,0.0001126,2]
[331737715,1720725716233,308.45407443,0.00011199,2]
[331737716,1720725910143,273.05483461,0.00011199,2]
[331737717,1720725932299,899.00859541,0.00011199,2]
[331737718,1720725955693,150.0,6.94e-05,2]
[331737719,1720726032923,155.0,0.00011199,2]
[331737724,1720726087458,469.94,0.00010723,2]
[331737726,1720726117491,364.69674518,0.00011199,2]
[331737727,1720726130958,155.60557615,0.00011199,2]
[331737728,1720726142961,4413.1,0.00027,120]
[331737729,1720726147510,364.69674518,0.00011199,2]
[331737731,1720726185429,46515.9280971,0.00011199,2]
[331737743,1720726232390,-2023.26638176,0.00012273,2]
[331737744,1720726232399,-305.30912342,0.0001251,2]
[331737745,1720726232410,-250.0,0.00012635,2]
[331737746,1720726232419,-200.0,0.00012638,2]
[331737747,1720726232428,-5.26151115,0.00012647,2]
[331737748,1720726232440,-244.73848885,0.00012647,2]
[331737749,1720726232449,-259.04,0.00012771,2]
[331737750,1720726232459,-500.0,0.00012904,2]
[331737751,1720726232468,-469.94,0.00012987,2]
[331737752,1720726232478,-176.56786557,0.00013,2]
[331737753,1720726232490,-267.23393513,0.00013,2]
[331737754,1720726232657,-4087.53372105,0.00013,2]
[331737755,1720726232669,-1572.82495648,0.00013,2]
[331737756,1720726238302,-553.148106,0.00013,2]
[331737757,1720726238314,-4488.32092168,0.00013,2]
[331737758,1720726238481,-6733.20987206,0.00013,2]
[331737759,1720726238492,-702.84669209,0.00013,2]
[331737760,1720726238501,-537.42890791,0.00013128,2]
[331737761,1720726238513,-9058.96894871,0.00013128,2]
[331737762,1720726238543,-300.11965555,0.00013128,2]
[331737763,1720726238554,-1522.57839701,0.00013128,2]
[331737805,1720726240629,-518.0,0.00013256,2]
[331737806,1720726240640,-161.593071,0.00013331,2]
[331737807,1720726240650,-170.979054,0.00013331,2]
[331737808,1720726240660,-164.196943,0.00013331,2]
[331737809,1720726240670,-4280.380382,0.00013331,2]
[331737810,1720726240679,-633.247353,0.00013331,2]
[331737811,1720726240689,-200.874022,0.00013331,2]
[331737812,1720726240699,-200.0,0.0001335,2]
[331737813,1720726240708,-150.99,0.0001335,2]
[331737814,1720726240718,-2500.0,0.00013424,2]
[331737815,1720726240728,-2500.0,0.00013424,2]
[331737816,1720726240740,-200.0,0.0001346,2]
[331737817,1720726240750,-521.01537596,0.00013472,2]
[331737818,1720726240760,-176.61176727,0.00013472,2]
[331737819,1720726240769,-4280.380382,0.00013498,2]
[331737820,1720726240778,-633.247353,0.00013498,2]
[331737821,1720726240788,-251.81312797,0.00013516,2]
[331737822,1720726240797,-150.0,0.00013528,2]
[331737823,1720726240807,-150.0,0.00013532,2]
[331737824,1720726240816,-150.0,0.00013534,2]
[331737825,1720726240825,-150.0,0.00013534,2]
[331737826,1720726240836,-150.0,0.00013536,2]
[331737827,1720726240845,-150.0,0.00013537,2]
[331737828,1720726240854,-150.0,0.00013537,2]
[331737829,1720726240864,-150.0,0.0001354,2]
[331737830,1720726240873,-150.0,0.00013545,2]
[331737831,1720726240882,-150.0,0.00013548,2]
[331737832,1720726240891,-150.0,0.00013553,2]
[331737833,1720726240900,-150.0,0.00013556,2]
[331737834,1720726240909,-150.0,0.00013556,2]
[331737835,1720726240918,-150.0,0.00013557,2]
[331737836,1720726240928,-150.0,0.00013559,2]
[331737837,1720726240937,-150.0,0.00013559,2]
[331737838,1720726240946,-150.0,0.00013561,2]
[331737839,1720726240955,-150.0,0.00013562,2]
[331737840,1720726240964,-150.0,0.00013565,2]
[331737841,1720726240973,-200.0,0.0001357,2]
[331737842,1720726240984,-150.0,0.00013571,2]
[331737843,1720726240994,-150.0,0.00013574,2]
[331737844,1720726241005,-163.69263223,0.00013574,2]
[331737845,1720726241017,-613.59605607,0.00013574,2]
[331737846,1720726241027,-150.0,0.00013579,2]
[331737847,1720726241038,-150.0,0.0001358,2]
[331737848,1720726241049,-150.0,0.00013582,2]
[331737849,1720726241058,-150.0,0.00013583,2]
[331737850,1720726241067,-150.0,0.00013583,2]
[331737851,1720726241076,-150.0,0.00013584,2]
[331737852,1720726241168,-150.0,0.00013586,2]
[331737853,1720726241178,-150.0,0.00013591,2]
[331737854,1720726241187,-150.0,0.00013591,2]
[331737855,1720726241197,-821.0,0.00013595,2]
[331737856,1720726241206,-150.0,0.00013596,2]
[331737857,1720726241215,-150.0,0.00013597,2]
[331737858,1720726241224,-855.07,0.000136,2]
[331737859,1720726241236,-528.73,0.000136,2]
[331737860,1720726241246,-855.07,0.000136,2]
[331737861,1720726241256,-414.56,0.000136,2]
[331737862,1720726241265,-150.0,0.00013604,2]
[331737863,1720726241274,-150.0,0.00013614,2]
[331737864,1720726241283,-150.0,0.00013615,2]
[331737865,1720726241292,-150.0,0.00013617,2]
[331737866,1720726241301,-150.0,0.00013621,2]
[331737867,1720726241311,-364.74283042,0.00013621,2]
[331737868,1720726241320,-150.0,0.00013626,2]
[331737869,1720726241329,-150.0,0.0001363,2]
[331737870,1720726241339,-150.0,0.00013631,2]
[331737871,1720726241348,-150.0,0.00013633,2]
[331737872,1720726241357,-150.0,0.00013637,2]
[331737873,1720726241367,-150.0,0.00013643,2]
[331737874,1720726241376,-150.0,0.00013646,2]
[331737875,1720726241385,-150.0,0.00013647,2]
[331737876,1720726241394,-150.0,0.00013648,2]
[331737877,1720726241403,-150.0,0.0001365,2]
[331737878,1720726241412,-150.0,0.00013651,2]
[331737879,1720726241421,-150.0,0.00013654,2]
[331737880,1720726241430,-3000.0,0.0001366,2]
[331737881,1720726241440,-3674.28204455,0.00013665,2]
[331737882,1720726241660,-606.09833745,0.00013665,2]
[331737883,1720726241669,-633.247353,0.00013665,2]
[331737884,1720726241678,-150.0,0.00013665,2]
[331737885,1720726241688,-150.0,0.00013666,2]
[331737886,1720726241698,-150.0,0.00013669,2]
[331737887,1720726241708,-150.0,0.00013672,2]
[331737888,1720726241717,-150.0,0.00013676,2]
[331737889,1720726241727,-200.0,0.0001368,2]
[331737890,1720726241736,-150.0,0.0001368,2]
[331737891,1720726241745,-150.0,0.00013681,2]
[331737892,1720726241754,-150.0,0.00013682,2]
[331737893,1720726241765,-150.0,0.00013684,2]
[331737894,1720726241775,-150.0,0.00013691,2]
[331737895,1720726241785,-150.0,0.00013693,2]
[331737896,1720726241794,-150.0,0.00013695,2]
[331737897,1720726241803,-201.35,0.00013699,2]
[331737898,1720726241813,-250.0,0.00013699,2]
[331737899,1720726241822,-503.95,0.00013699,2]
[331737900,1720726241831,-200.0,0.00013699,2]
[331737901,1720726241842,-700.1491,0.00013699,2]
[331737902,1720726241851,-150.0,0.00013699,2]
[331737903,1720726241861,-10000.0,0.000137,2]
[331737904,1720726241871,-461.36,0.000137,2]
[331737905,1720726241880,-13486.9478,0.000137,2]
[331737906,1720726241890,-1251.2596,0.000137,2]
[331737907,1720726241900,-8387.54285459,0.000137,2]
[331737908,1720726241918,-8292.16884541,0.000137,2]
[331737909,1720726241928,-171.5977338,0.000137,2]
[331737910,1720726241937,-4464.3826,0.000137,2]
[331737911,1720726241947,-150.0,0.00013702,2]
[331737912,1720726241957,-150.0,0.00013707,2]
[331737913,1720726241967,-150.0,0.00013711,2]
[331737914,1720726241977,-150.0,0.00013715,2]
[331737915,1720726241986,-150.0,0.00013716,2]
[331737916,1720726241996,-150.0,0.00013718,2]
[331737917,1720726242006,-150.0,0.00013724,2]
[331737918,1720726242015,-150.0,0.00013724,2]
[331737919,1720726242025,-150.0,0.00013725,2]
[331737920,1720726242035,-150.0,0.00013726,2]
[331737921,1720726242044,-150.0,0.00013727,2]
[331737922,1720726242054,-150.0,0.00013727,2]
[331737923,1720726242064,-150.0,0.00013727,2]
[331737924,1720726242074,-171.59773379,0.00013729,2]
[331737925,1720726242083,-150.0,0.00013738,2]
[331737926,1720726242097,-150.0,0.00013738,2]
[331737927,1720726242107,-150.0,0.00013741,2]
[331737928,1720726242117,-150.0,0.00013749,2]
[331737929,1720726242127,-150.0,0.00013754,2]
[331737930,1720726242136,-150.0,0.00013755,2]
[331737931,1720726242147,-150.0,0.00013756,2]
[331737932,1720726242160,-171.59773379,0.00013757,2]
[331737933,1720726242169,-150.0,0.00013758,2]
[331737934,1720726242179,-150.0,0.00013758,2]
[331737935,1720726242188,-587.47,0.00013759,3]
[331737936,1720726242198,-150.0,0.00013765,2]
[331737937,1720726242208,-150.0,0.00013766,2]
[331737938,1720726242218,-150.0,0.00013766,2]
[331737939,1720726242230,-150.0,0.00013769,2]
[331737940,1720726242239,-150.0,0.0001377,2]
[331737941,1720726242249,-150.0,0.00013773,2]
[331737942,1720726242259,-150.0,0.00013777,2]
[331737943,1720726242268,-200.0,0.0001378,2]
[331737944,1720726242278,-150.0,0.00013783,2]
[331737945,1720726242287,-150.0,0.00013785,2]
[331737946,1720726242297,-150.0,0.00013785,2]
[331737947,1720726242307,-171.59773379,0.00013786,2]
[331737948,1720726242316,-500.0,0.00013789,2]
[331737949,1720726242325,-200.0,0.00013789,2]
[331737950,1720726242339,-150.0,0.00013791,2]
[331737951,1720726242348,-150.0,0.00013791,2]
[331737952,1720726242357,-150.0,0.00013792,2]
[331737953,1720726242368,-150.0,0.00013793,2]
[331737954,1720726242377,-150.0,0.00013798,2]
[331737955,1720726242386,-150.0,0.00013798,2]
[331737956,1720726242395,-2617.56938989,0.00013799,2]
[331737957,1720726242404,-500.28,0.00013799,2]
[331737958,1720726242413,-500.0,0.00013799,2]
[331737959,1720726242423,-608.34,0.00013799,2]
[331737960,1720726242432,-531.03,0.00013799,2]
[331737961,1720726242441,-500.0,0.00013799,2]
[331737962,1720726242451,-500.0,0.00013799,2]
[331737963,1720726242460,-536.34,0.00013799,2]
[331737964,1720726242470,-567.18,0.00013799,2]
[331737965,1720726242563,-535.6,0.00013799,2]
[331737966,1720726242573,-500.0,0.00013799,2]
[331737967,1720726242583,-500.0,0.00013799,2]
[331737968,1720726242595,-200.0,0.00013799,7]
[331737969,1720726242605,-300.0,0.00013799,2]
[331737970,1720726242614,-500.0,0.00013799,2]
[331737971,1720726242625,-500.0,0.00013799,2]
[331737972,1720726242635,-500.0,0.00013799,2]
[331737973,1720726242644,-512.75,0.00013799,2]
[331737974,1720726242653,-500.0,0.00013799,2]
[331737975,1720726242663,-500.0,0.00013799,2]
[331737976,1720726242672,-736.95,0.00013799,2]
[331737977,1720726242682,-500.0,0.00013799,2]
[331737978,1720726242692,-743.71,0.00013799,2]
[331737979,1720726242701,-500.0,0.00013799,2]
[331737980,1720726242712,-500.0,0.00013799,2]
[331737981,1720726242722,-500.0,0.00013799,2]
[331737982,1720726242732,-500.0,0.00013799,2]
[331737983,1720726242741,-500.0,0.00013799,2]
[331737984,1720726242751,-300.0,0.00013799,2]
[331737985,1720726242761,-549.71,0.00013799,2]
[331737986,1720726242770,-500.0,0.00013799,2]
[331737987,1720726242779,-500.0,0.00013799,2]
[331737988,1720726242789,-500.0,0.00013799,2]
[331737989,1720726242798,-500.0,0.00013799,2]
[331737990,1720726242807,-500.0,0.00013799,2]
[331737991,1720726242817,-500.0,0.00013799,2]
[331737992,1720726242826,-500.0,0.00013799,2]
[331737993,1720726242836,-500.0,0.00013799,2]
[331737994,1720726242845,-300.0,0.00013799,2]
[331737995,1720726242855,-500.0,0.00013799,2]
[331737996,1720726242864,-500.0,0.00013799,2]
[331737997,1720726242874,-500.0,0.00013799,2]
[331737998,1720726242883,-500.0,0.00013799,2]
[331737999,1720726242893,-500.0,0.00013799,2]
[331738000,1720726242903,-500.0,0.00013799,2]
[331738001,1720726242913,-500.0,0.00013799,2]
[331738002,1720726242922,-126.93471772,0.00013799,2]
[331738003,1720726242935,-373.06528228,0.00013799,2]
[331738004,1720726242944,-500.0,0.00013799,2]
[331738005,1720726242953,-300.0,0.00013799,2]
[331738006,1720726242963,-500.0,0.00013799,2]
[331738007,1720726242972,-500.0,0.00013799,2]
[331738008,1720726242982,-500.0,0.00013799,2]
[331738009,1720726242993,-550.09,0.00013799,2]
[331738010,1720726243003,-500.0,0.00013799,2]
[331738011,1720726243012,-500.0,0.00013799,2]
[331738012,1720726243022,-560.5437465,0.00013799,2]
[331738013,1720726243031,-500.0,0.00013799,2]
[331738014,1720726243041,-777.0,0.000138,2]
[331738015,1720726243051,-10316.21338238,0.000138,2]
[331738016,1720726243064,-1637.99825234,0.000138,2]
[331738017,1720726243075,-1023.25,0.000138,2]
[331738019,1720726243098,-821.0,0.00013735,2]
[331738020,1720726243109,-253.55,0.000138,2]
[331738021,1720726243120,-500.0,0.000138,2]
[331738048,1720726244682,-150.0,0.00013627,2]
[331738049,1720726244692,-150.0,0.0001377,2]
[331738051,1720726244702,-28464.618,0.000138,2]
[331738092,1720726247728,-825.45,0.000138,2]
[331738093,1720726247739,-83888.71343437,0.000138,2]
[331738094,1720726247751,-649.10362259,0.000138,2]
[331738095,1720726247762,-2804.45,0.000138,2]
[331738096,1720726247842,-748.0,0.000138,2]
[331738097,1720726247851,-2970.2945707,0.000138,2]
[331738098,1720726247862,-7769.64315569,0.000138,2]
[331738099,1720726247873,-2495.52649075,0.000138,2]
[331738100,1720726247883,-3001.3,0.000138,2]
[331738101,1720726247894,-52587.54300546,0.000138,2]
[331738102,1720726264869,500.0,0.0001126,2]
[331738103,1720726370177,2065.4620156,0.0001126,2]
[331738105,1720726618523,450.15,0.00010736,2]
[331738107,1720726757600,155.0,0.00011199,2]
[331738108,1720726814629,518.06612514,0.00011199,2]
[331738109,1720726837801,377.05484138,0.00011199,2]
[331738111,1720726931869,522.1667694,0.00011199,2]
[331738112,1720726940698,260.72614342,0.00011199,2]
[331738113,1720726941458,155.0,0.00011199,2]
[331738137,1720727119570,227.30730583,0.00011199,2]
[331738138,1720727133910,155.0,0.00011199,2]
[331738139,1720727134555,227.30730583,0.00011199,2]
[331738141,1720727205704,377.9550738,0.0001072,2]
[331738142,1720727205731,76.2149262,0.0001072,2]
[331738144,1720727236048,30000.0,0.00027,120]
[331738146,1720727305792,41718.97342664,0.00027,120]
[331738149,1720727328476,983.74003119,0.00027,120]
[331738175,1720727431458,-155.0,0.00012273,2]
[331738176,1720727431467,-150.0,0.00012403,2]
[331738177,1720727431477,-175.95,0.00012606,2]
[331738178,1720727431486,-210.04675357,0.00012606,2]
[331738179,1720727431511,-289.95324643,0.00012606,2]
[331738180,1720727431520,-250.0,0.00012607,2]
[331738181,1720727431529,-442.76,0.00012608,2]
[331738182,1720727431538,-160.0,0.00012617,2]
[331738183,1720727431549,-192.76,0.00012626,2]
[331738184,1720727431559,-840.0,0.00012754,2]
[331738185,1720727431568,-500.0,0.00012904,2]
[331738186,1720727431578,-300.0,0.00012983,2]
[331738187,1720727431588,-562.84296406,0.00012984,2]
[331738188,1720727431601,-764.60626949,0.00012984,2]
[331738189,1720727431618,-2605.34076645,0.00012984,2]
[331738190,1720727431627,-454.17,0.00012984,2]
[331738191,1720727431636,-5.77701773,0.00013,2]
[331738200,1720727437619,-597.755,0.00013,2]
[331738201,1720727437631,-646.46798227,0.00013,2]
[331738202,1720727437641,-959.51201773,0.00013,2]
[331738205,1720727439499,-1230.11798227,0.00013,2]
[331738206,1720727439509,-32.44884773,0.000131,4]
[331738207,1720727439553,-566.41,0.000131,4]
[331738208,1720727439565,-301.14115227,0.000131,4]
[331738209,1720727439575,-227.30730583,0.00013128,2]
[331738210,1720727439585,-910.7865419,0.000132,4]
[331738211,1720727439713,-439.10667098,0.000132,4]
[331738212,1720727439766,-450.10678712,0.000132,4]
[331738213,1720727439776,-2800.0,0.000133,4]
[331738214,1720727439785,-175.595959,0.00013331,2]
[331738215,1720727439795,-3700.0,0.000134,4]
[331738216,1720727439806,-528.86,0.000135,2]
[331738217,1720727439816,-150.0,0.000135,2]
[331738218,1720727439825,-301.29,0.000135,2]
[331738219,1720727439835,-329.9,0.000135,2]
[331738220,1720727439846,-300.29,0.000135,2]
[331738221,1720727439855,-424.55,0.000135,2]
[331738222,1720727439865,-161.48,0.000135,2]
[331738223,1720727439875,-4600.0,0.000135,4]
[331738224,1720727439884,-1068.17018491,0.00013516,2]
[331738225,1720727439894,-150.0,0.00013528,2]
[331738226,1720727439903,-150.0,0.0001353,2]
[331738227,1720727439913,-150.0,0.00013533,2]
[331738228,1720727439922,-150.0,0.00013537,2]
[331738229,1720727439933,-150.0,0.00013542,2]
[331738230,1720727439942,-150.0,0.00013544,2]
[331738231,1720727439951,-150.0,0.00013545,2]
[331738232,1720727439961,-150.0,0.00013551,2]
[331738233,1720727439971,-150.0,0.00013551,2]
[331738234,1720727439980,-150.0,0.00013556,2]
[331738235,1720727439990,-150.0,0.0001356,2]
[331738236,1720727439999,-150.0,0.00013561,2]
[331738237,1720727440009,-150.0,0.00013567,2]
[331738238,1720727440019,-364.74283042,0.0001357,2]
[331738239,1720727440028,-150.0,0.00013573,2]
[331738240,1720727440037,-150.0,0.00013574,2]
[331738241,1720727440047,-312.27947202,0.00013574,2]
[331738242,1720727440056,-150.0,0.0001358,2]
[331738243,1720727440066,-150.0,0.00013583,2]
[331738244,1720727440075,-150.0,0.00013584,2]
[331738245,1720727440084,-150.0,0.00013586,2]
[331738246,1720727440093,-150.0,0.0001359,2]
[331738247,1720727440103,-150.0,0.00013593,2]
[331738248,1720727440112,-150.0,0.00013593,2]
[331738249,1720727440122,-150.0,0.00013595,2]
[331738250,1720727440131,-150.0,0.00013595,2]
[331738251,1720727440141,-150.0,0.00013596,2]
[331738252,1720727440150,-150.0,0.00013597,2]
[331738253,1720727440159,-150.0,0.00013598,2]
[331738254,1720727440168,-150.0,0.00013599,2]
[331738255,1720727440177,-735.92432967,0.000136,4]
[331738256,1720727440189,-164.07567033,0.000136,4]
[331738257,1720727440199,-150.0,0.00013609,2]
[331738258,1720727440209,-150.0,0.00013611,2]
[331738259,1720727440218,-150.0,0.00013616,2]
[331738260,1720727440227,-150.0,0.00013618,2]
[331738261,1720727440237,-150.0,0.00013618,2]
[331738262,1720727440247,-150.0,0.00013619,2]
[331738263,1720727440258,-150.0,0.00013619,2]
[331738264,1720727440268,-150.0,0.00013621,2]
[331738265,1720727440278,-150.0,0.00013625,2]
[331738266,1720727440288,-150.0,0.00013627,2]
[331738267,1720727440297,-150.0,0.0001364,2]
[331738268,1720727440307,-150.0,0.00013649,2]
[331738269,1720727440316,-150.0,0.00013651,2]
[331738270,1720727440326,-150.0,0.00013655,2]
[331738271,1720727440335,-150.0,0.0001366,2]
[331738272,1720727440346,-577.9737,0.0001366,2]
[331738273,1720727440356,-150.0,0.00013661,2]
[331738274,1720727440366,-150.0,0.00013661,2]
[331738275,1720727440375,-150.0,0.00013665,2]
[331738276,1720727440385,-150.0,0.00013665,2]
[331738277,1720727440394,-895.20781516,0.0001367,2]
[331738278,1720727440404,-150.0,0.0001367,2]
[331738279,1720727440413,-150.0,0.00013671,2]
[331738280,1720727440423,-150.0,0.00013672,2]
[331738281,1720727440432,-150.0,0.00013673,2]
[331738282,1720727440441,-150.0,0.00013679,2]
[331738283,1720727440451,-150.0,0.0001368,2]
[331738284,1720727440460,-150.0,0.00013681,2]
[331738285,1720727440469,-150.0,0.00013683,2]
[331738286,1720727440479,-150.0,0.00013686,2]
[331738287,1720727440489,-500.0,0.00013689,2]
[331738288,1720727440498,-500.0,0.0001369,2]
[331738289,1720727440508,-500.0,0.0001369,2]
[331738290,1720727440517,-150.0,0.00013693,2]
[331738291,1720727440527,-150.0,0.00013694,2]
[331738292,1720727440536,-150.0,0.00013697,2]
[331738293,1720727440546,-251.97,0.00013699,2]
[331738294,1720727440555,-201.35,0.00013699,2]
[331738295,1720727440565,-338.7468,0.00013699,2]
[331738296,1720727440574,-351.88844729,0.00013699,2]
[331738297,1720727440584,-150.0,0.00013699,2]
[331738298,1720727440596,-10000.0,0.000137,2]
[331738299,1720727440609,-18928.2049,0.000137,2]
[331738300,1720727440618,-713.7506,0.000137,2]
[331738301,1720727440628,-488.8288,0.000137,2]
[331738302,1720727440637,-2438.0496,0.000137,2]
[331738303,1720727440647,-900.0,0.000137,5]
[331738304,1720727440657,-322.24176037,0.000137,2]
[331738305,1720727440666,-150.0,0.00013701,2]
[331738306,1720727440678,-150.0,0.00013701,2]
[331738307,1720727440687,-150.0,0.00013703,2]
[331738308,1720727440697,-150.0,0.00013711,2]
[331738309,1720727440707,-150.0,0.00013718,2]
[331738310,1720727440717,-150.0,0.0001372,2]
[331738311,1720727440727,-150.0,0.0001372,2]
[331738312,1720727440737,-150.0,0.00013722,2]
[331738313,1720727440747,-150.0,0.00013729,2]
[331738314,1720727440756,-150.0,0.00013732,2]
[331738315,1720727440767,-150.0,0.00013734,2]
[331738316,1720727440776,-150.0,0.00013734,2]
[331738317,1720727440786,-150.0,0.00013735,2]
[331738318,1720727440795,-150.0,0.00013736,2]
[331738319,1720727440805,-150.0,0.00013737,2]
[331738320,1720727440814,-150.0,0.00013737,2]
[331738321,1720727440824,-150.0,0.00013739,2]
[331738322,1720727440833,-150.0,0.00013739,2]
[331738323,1720727440842,-150.0,0.0001374,2]
[331738324,1720727440853,-150.0,0.0001374,2]
[331738325,1720727440863,-150.0,0.00013747,2]
[331738326,1720727440872,-150.0,0.00013749,2]
[331738327,1720727440881,-150.0,0.00013751,2]
[331738328,1720727440891,-150.0,0.00013755,2]
[331738329,1720727440901,-150.0,0.00013762,2]
[331738330,1720727440910,-150.0,0.00013764,2]
[331738331,1720727440920,-150.0,0.0001377,2]
[331738332,1720727440929,-150.0,0.0001377,2]
[331738333,1720727440938,-150.0,0.0001377,2]
[331738334,1720727440947,-150.0,0.0001377,2]
[331738335,1720727440959,-150.0,0.00013779,2]
[331738336,1720727440968,-186.38880843,0.00013783,2]
[331738337,1720727440978,-150.0,0.00013784,2]